bitfinex/quotes_SOLUSD_20251024
["timestamp","ask_amount","ask_price","bid_price","bid_amount"]
[1761313815146,7.90136524,191.47,191.41,12.06136524]
[1761313815450,10.87647521,191.51,191.39,35.68]
[1761313815662,7.90136524,191.42,191.38,5.22517656]
[1761313815946,0.71,191.44,191.38,18.28819254]
[1761313816155,3.39964609,191.47,191.38,18.28819254]
[1761313816358,7.90136524,191.42,191.38,5.22517656]
[1761313816565,7.90136524,191.39,191.32,5.8493324]
[1761313816858,0.71,191.46,191.32,5.8493324]
[1761313816859,10.87647521,191.43,191.32,5.32683824]
[1761313817059,10.87647521,191.43,191.33,7.90136524]
[1761313817060,7.90136524,191.38,191.33,7.90136524]
[1761313817263,7.90136524,191.38,191.32,8.00136524]
[1761313817566,0.71,191.37,191.32,0.1]
[1761313817746,7.90136524,191.33,191.32,0.1]
[1761313817948,7.90136524,191.34,191.32,0.1]
[1761313818264,22.88,191.4,191.32,0.1]
[1761313818564,22.88,191.4,191.34,7.90136524]
[1761313818565,7.90136524,191.4,191.34,7.90136524]
[1761313818865,7.90136524,191.39,191.33,8.60136524]
[1761313819070,8.61136524,191.41,191.35,7.90136524]
[1761313819268,7.90136524,191.4,191.34,7.90136524]
[1761313819574,7.90136524,191.38,191.32,8.00136524]
[1761313819757,7.90136524,191.38,191.32,13.2281336]
[1761313819962,0.71,191.39,191.33,7.90136524]
[1761313820267,0.71,191.39,191.32,0.1]
[1761313820454,7.90136524,191.33,191.32,0.1]
[1761313820969,8.61136524,191.33,191.32,0.1]
[1761313821466,47.59441234,191.33,191.32,0.1]
[1761313821964,47.59441234,191.33,191.27,0.1]
[1761313822144,7.90136524,191.28,191.27,0.1]
[1761313822340,22.88,191.29,191.27,0.1]
[1761313822566,30.78136524,191.29,191.27,0.1]
[1761313822766,7.90136524,191.29,191.27,0.1]
[1761313822947,8.61136524,191.28,191.27,0.1]
[1761313823851,23.59,191.32,191.27,0.1]
[1761313824049,0.71,191.36,191.27,13.92945165]
[1761313824277,0.71,191.36,191.29,7.90136524]
[1761313824474,27.44,191.39,191.31,7.90136524]
[1761313824637,7.90136524,191.36,191.28,0.7]
[1761313824836,5.20878782,191.35,191.28,0.7]
[1761313825074,28.08878782,191.36,191.3,5.20878782]
[1761313825250,5.20878782,191.37,191.31,5.20878782]
[1761313825445,5.20878782,191.37,191.32,5.22684507]
[1761313825661,0.71,191.38,191.32,5.22684507]
[1761313825842,5.20878782,191.37,191.32,5.22684507]
[1761313826259,0.71,191.42,191.33,5.90878782]
[1761313826460,5.20878782,191.43,191.37,5.20878782]
[1761313826861,5.20878782,191.38,191.32,5.22684507]
[1761313827067,5.20878782,191.33,191.27,0.1]
[1761313827398,5.20878782,191.28,191.27,0.1]
[1761313827674,22.88,191.27,191.19,5.20878782]
[1761313827870,22.88,191.27,191.18,5.93067266]
[1761313827871,5.20878782,191.25,191.2,5.20878782]
[1761313828065,0.71,191.33,191.22,5.20878782]
[1761313828248,5.60314303,191.42,191.22,5.20878782]
[1761313828249,22.88,191.31,191.22,5.20878782]
[1761313828452,5.20878782,191.28,191.22,5.20878782]
[1761313828648,5.20878782,191.27,191.21,5.90878782]
[1761313829037,5.20878782,191.28,191.21,0.7]
[1761313829254,5.20878782,191.28,191.22,5.20878782]
[1761313829450,5.20878782,191.28,191.23,10.43799552]
[1761313829852,5.20878782,191.28,191.23,5.2292077]
[1761313830140,5.20878782,191.25,191.23,5.2292077]
[1761313830362,22.88,191.31,191.24,0.7]
[1761313830554,5.20878782,191.29,191.24,0.7]
[1761313830757,5.20878782,191.27,191.23,5.2292077]
[1761313830964,5.20878782,191.27,191.23,5.9292077]
[1761313831173,23.59,191.33,191.23,5.2292077]
[1761313831374,5.20878782,191.28,191.24,0.7]
[1761313831573,5.20878782,191.28,191.24,5.92891665]
[1761313831882,23.56,191.33,191.24,5.92891665]
[1761313832078,28.78664303,191.33,191.24,5.22891665]
[1761313832281,0.68,191.35,191.25,0.7]
[1761313832456,16.08526303,191.4,191.25,0.7]
[1761313832457,5.22547943,191.37,191.25,0.7]
[1761313832654,16.08526303,191.4,191.25,0.7]
[1761313832655,5.20878782,191.32,191.25,1.22287581]
[1761313832871,5.20878782,191.34,191.26,5.20878782]
[1761313833069,5.20878782,191.34,191.26,5.90878782]
[1761313833266,22.88,191.37,191.29,5.20878782]
[1761313833579,22.88,191.37,191.21,61.66]
[1761313833580,5.20878782,191.3,191.23,0.7]
[1761313833780,5.20878782,191.25,191.2,5.23012552]
[1761313834082,5.20878782,191.22,191.15,0.7]
[1761313834282,5.20878782,191.21,191.15,0.7]
[1761313834484,0.68,191.24,191.13,0.1]
[1761313834485,5.20878782,191.18,191.13,0.1]
[1761313834672,10.87647521,191.23,191.13,0.1]
[1761313834875,5.20878782,191.17,191.13,0.1]
[1761313835071,5.20878782,191.17,191.13,5.33201752]
[1761313835384,5.20878782,191.14,191.13,0.1]
[1761313835789,0.68,191.17,191.13,0.1]
[1761313835960,5.20878782,191.14,191.13,0.1]
[1761313836483,0.68,191.17,191.13,0.1]
[1761313836666,5.20878782,191.14,191.13,0.1]
[1761313837588,22.88,191.19,191.13,0.1]
[1761313837786,5.20878782,191.14,191.13,0.1]
[1761313838155,5.88878782,191.14,191.13,0.1]
[1761313838687,5.20878782,191.14,191.13,0.1]
[1761313839094,5.20878782,191.15,191.13,0.1]
[1761313839405,28.76878782,191.18,191.04,0.7]
[1761313839703,28.76878782,191.18,191.02,5.23490024]
[1761313839704,5.20878782,191.08,191.02,5.23490024]
[1761313839910,22.88,191.11,191.04,5.20878782]
[1761313839911,28.08878782,191.11,191.04,5.20878782]
[1761313840068,5.23149423,191.15,191.04,5.20878782]
[1761313840069,0.68,191.15,191.04,5.20878782]
[1761313840275,38.88,191.14,191.05,5.90878782]
[1761313840483,5.20878782,191.15,191.08,5.20878782]
[1761313840801,0.68,191.18,191.06,0.7]
[1761313840802,5.20878782,191.13,191.06,0.7]
[1761313841003,5.20878782,191.09,191.06,0.7]
[1761313841163,22.88,191.15,191.03,5.20878782]
[1761313841371,38.9,191.14,191.06,0.7]
[1761313841569,5.20878782,191.12,191.07,5.23368399]
[1761313841965,0.68,191.16,191.07,5.23368399]
[1761313841966,5.9112204,191.16,191.07,5.23368399]
[1761313842175,5.20878782,191.1,191.02,0.52350539]
[1761313842494,22.88,191.12,190.86,26.19648592]
[1761313842495,5.20878782,191.04,190.98,5.23588878]
[1761313842698,5.20878782,191.07,190.98,10.4446766]
[1761313842996,23.56,191.12,190.99,0.7]
[1761313842997,31.46,191.11,190.99,0.7]
[1761313843170,10.87647521,191.15,191.0,5.20878782]
[1761313843171,5.20878782,191.08,191.0,5.20878782]
[1761313843590,5.20878782,191.08,191.02,18.32268872]
[1761313843897,5.20878782,191.1,191.02,23.53147654]
[1761313844073,5.20878782,191.1,191.03,0.7]
[1761313844276,5.91176881,191.14,191.03,0.7]
[1761313844483,5.20878782,191.06,191.0,5.23534252]
[1761313844674,22.88,191.12,191.0,9.94413034]
[1761313844881,5.20878782,191.03,190.98,5.20878782]
[1761313845091,5.20878782,191.03,190.97,11.14521238]
[1761313845495,5.20878782,191.03,190.97,19.02748598]
[1761313845702,5.91369674,191.07,190.97,11.14521238]
[1761313845872,0.68,191.07,190.99,5.20878782]
[1761313846075,5.20878782,191.06,190.99,5.20878782]
[1761313846283,61.8,191.09,191.0,5.20878782]
[1761313846484,5.20878782,191.06,190.99,5.90878782]
[1761313846683,5.20878782,191.09,191.02,5.20878782]
[1761313846989,5.20878782,191.1,191.04,5.20878782]
[1761313847194,38.9,191.15,191.05,5.20878782]
[1761313847397,5.23121992,191.16,191.0,1.2235602]
[1761313847398,0.68,191.16,191.06,0.7]
[1761313847710,0.68,191.16,191.07,5.23368399]
[1761313848002,5.20878782,191.12,191.07,5.23368399]
[1761313848209,0.68,191.16,191.07,5.23368399]
[1761313848388,5.20878782,191.12,191.07,10.44247181]
[1761313848588,0.68,191.19,191.08,0.7]
[1761313848907,22.88,191.16,191.1,5.20878782]
[1761313849106,0.68,191.19,191.1,5.20878782]
[1761313849408,38.9,191.2,191.1,0.7]
[1761313849409,5.20878782,191.17,191.1,0.7]
[1761313849611,5.20878782,191.17,191.12,5.23231477]
[1761313849983,5.20878782,191.18,191.13,5.90878782]
[1761313850203,5.20878782,191.19,191.13,5.90878782]
[1761313850399,5.20878782,191.19,191.12,18.31310171]
[1761313850400,5.20878782,191.17,191.12,5.23231477]
[1761313850705,5.20878782,191.16,191.12,5.23231477]
[1761313850901,5.91015232,191.2,191.12,5.23231477]
[1761313851097,5.20878782,191.17,191.12,5.23231477]
[1761313851305,0.68,191.2,191.12,11.14110259]
[1761313851793,70.2,191.22,191.13,0.7]
[1761313852106,5.20878782,191.23,191.16,5.20878782]
[1761313852287,44.7488302,191.25,191.16,5.20878782]
[1761313852606,5.20878782,191.23,191.16,5.20878782]
[1761313852790,5.88878782,191.24,191.17,5.20878782]
[1761313852992,38.84,191.25,191.19,5.20878782]
[1761313852993,44.04878782,191.25,191.19,5.20878782]
[1761313853194,0.68,191.24,191.16,5.20878782]
[1761313853395,0.68,191.24,191.13,5.90878782]
[1761313853396,5.20878782,191.2,191.13,5.90878782]
[1761313853801,5.20878782,191.2,191.14,11.14055511]
[1761313854100,5.20878782,191.16,191.13,5.23200824]
[1761313854293,5.20878782,191.15,191.13,5.23200824]
[1761313854690,0.68,191.2,191.13,5.23200824]
[1761313855113,5.20878782,191.15,191.13,5.23200824]
[1761313855313,5.20878782,191.14,191.11,5.2323255]
[1761313855690,5.2304396,191.19,191.09,18.31597675]
[1761313855892,5.20878782,191.16,191.1,5.20878782]
[1761313856096,3.34239876,191.2,191.12,5.20878782]
[1761313856290,5.20878782,191.19,191.12,5.20878782]
[1761313856490,5.20878782,191.18,191.12,5.90878782]
[1761313856898,5.20878782,191.19,191.13,0.72]
[1761313857101,5.20878782,191.19,191.13,5.92878782]
[1761313857300,5.20878782,191.18,191.13,0.72]
[1761313857921,5.20878782,191.17,191.13,0.72]
[1761313858100,5.20878782,191.16,191.12,5.23231477]
[1761313858302,5.20878782,191.17,191.12,5.23231477]
[1761313858495,3.35335526,191.16,191.13,0.72]
[1761313858692,4.20235727,191.21,191.05,1.24342318]
[1761313858693,3.35335526,191.15,191.05,1.24342318]
[1761313858913,5.20878782,191.1,191.06,5.95395791]
[1761313859119,5.20878782,191.12,191.07,0.72]
[1761313859306,3.35335526,191.11,191.07,5.92878782]
[1761313859642,5.20878782,191.11,191.06,18.3188527]
[1761313859800,3.3693356,191.1,191.07,0.72]
[1761313859999,5.20878782,191.13,191.08,18.31693531]
[1761313860197,3.36963023,191.12,191.09,5.20878782]
[1761313860500,5.20878782,191.14,191.08,23.52572313]
[1761313860814,8.58227219,191.13,191.09,0.72]
[1761313861018,3.37348437,191.12,191.09,0.72]
[1761313861221,3.37348437,191.11,191.08,5.23341009]
[1761313861426,3.37348437,191.1,191.08,5.23341009]
[1761313861605,3.37348437,191.09,191.06,5.23368686]
[1761313861807,5.20878782,191.1,191.06,5.23368686]
[1761313862026,3.37546932,191.09,191.04,18.95441355]
[1761313862343,3.37546932,191.08,191.06,0.66]
[1761313862501,13.07736569,191.17,191.04,5.20878782]
[1761313862502,5.20878782,191.11,191.04,22.88]
[1761313862705,5.20878782,191.09,191.03,5.86878782]
[1761313863020,3.37690676,191.08,191.03,5.86878782]
[1761313863215,3.37690676,191.07,191.04,5.86878782]
[1761313863413,3.37690676,191.06,191.04,0.66]
[1761313863616,5.20878782,191.1,191.04,5.86878782]
[1761313863821,8.58623218,191.09,191.03,5.20878782]
[1761313864031,8.58623218,191.08,191.02,18.98253993]
[1761313864212,3.37744436,191.07,191.02,10.44384174]
[1761313864521,3.37744436,191.06,191.02,5.23505392]
[1761313864729,3.37744436,191.05,191.03,0.66]
[1761313864952,4.20235727,191.1,191.03,0.66]
[1761313865100,4.20235727,191.13,191.05,22.88]
[1761313865296,13.07179208,191.26,191.05,22.88]
[1761313865297,4.20235727,191.17,191.06,1.18339579]
[1761313865702,4.20235727,191.18,191.07,0.66]
[1761313865909,9.41114509,191.18,191.12,5.20878782]
[1761313866213,4.20235727,191.2,191.15,5.20878782]
[1761313866528,4.20235727,191.21,191.16,5.20878782]
[1761313866715,9.41114509,191.21,191.15,5.20878782]
[1761313867113,5.20878782,191.23,191.17,5.20878782]
[1761313867425,4.20235727,191.25,191.2,5.20878782]
[1761313867735,4.20235727,191.26,191.22,5.20878782]
[1761313867901,5.60314303,191.28,191.25,5.20878782]
[1761313867902,4.20235727,191.28,191.25,5.20878782]
[1761313868231,4.20235727,191.29,191.27,10.43699924]
[1761313868412,5.20878782,191.29,191.23,18.30255997]
[1761313868740,4.20235727,191.3,191.25,5.20878782]
[1761313868906,4.20235727,191.31,191.27,5.20878782]
[1761313869309,4.20235727,191.32,191.27,5.20878782]
[1761313869504,9.41114509,191.32,191.23,18.82549047]
[1761313869706,4.20235727,191.31,191.25,5.20878782]
[1761313870024,5.60314303,191.34,191.28,5.20878782]
[1761313870025,4.20235727,191.33,191.28,5.20878782]
[1761313870232,4.20235727,191.33,191.29,5.2276648]
[1761313870433,4.20235727,191.33,191.29,10.43645262]
[1761313870610,5.20878782,191.35,191.29,23.50561462]
[1761313870816,0.2,191.38,191.32,5.20878782]
[1761313870817,4.20235727,191.37,191.32,5.20878782]
[1761313871139,4.40235727,191.38,191.29,18.2968268]
[1761313871318,0.2,191.38,191.36,5.20878782]
[1761313871517,0.2,191.38,191.37,5.20878782]
[1761313871852,0.2,191.38,191.32,38.7]
[1761313872151,0.2,191.38,191.34,5.22629873]
[1761313872310,0.2,191.38,191.34,10.43508655]
[1761313872509,0.2,191.38,191.34,18.29204556]
[1761313872742,5.40878782,191.38,191.34,5.22629873]
[1761313872918,0.2,191.38,191.28,5.20878782]
[1761313873122,0.2,191.38,191.3,5.20878782]
[1761313873324,5.40878782,191.38,191.32,5.20878782]
[1761313873512,5.20878782,191.36,191.3,5.20878782]
[1761313873914,5.20878782,191.37,191.31,5.20878782]
[1761313874109,0.2,191.38,191.35,5.2260256]
[1761313874635,0.2,191.38,191.36,5.20878782]
[1761313874838,0.2,191.38,191.35,5.2260256]
[1761313875919,5.40878782,191.38,191.33,5.20878782]
[1761313876132,5.40878782,191.38,191.32,5.20878782]
[1761313876342,0.2,191.38,191.34,5.20878782]
[1761313876654,0.2,191.38,191.29,0.52276648]
[1761313876944,0.2,191.38,191.33,5.20878782]
[1761313877148,0.2,191.38,191.3,5.20878782]
[1761313877342,0.2,191.38,191.31,5.20878782]
[1761313877548,5.20878782,191.36,191.31,5.20878782]
[1761313877845,0.2,191.38,191.31,5.20878782]
[1761313877846,0.2,191.38,191.32,18.29395776]
[1761313878042,0.2,191.38,191.33,5.20878782]
[1761313878242,0.2,191.38,191.32,5.22684507]
[1761313878447,5.20878782,191.34,191.32,5.22684507]
[1761313878662,5.20878782,191.35,191.32,5.22684507]
[1761313879152,5.20878782,191.36,191.32,5.22684507]
[1761313879348,5.20878782,191.36,191.32,18.29395776]
[1761313879661,0.2,191.38,191.26,0.52284847]
[1761313879970,0.2,191.38,191.12,26.16102227]
[1761313879971,22.88,191.34,191.23,5.20878782]
[1761313880156,5.20878782,191.29,191.23,5.20878782]
[1761313880339,22.88,191.34,191.19,5.20878782]
[1761313880340,5.20878782,191.25,191.19,5.20878782]
[1761313880927,5.20878782,191.27,191.2,5.20878782]
[1761313881333,5.20878782,191.27,191.21,18.30448197]
[1761313881648,5.20878782,191.29,191.23,5.20878782]
[1761313881959,5.20878782,191.26,191.21,18.30448197]
[1761313882255,5.20878782,191.24,191.21,5.22985199]
[1761313882427,5.20878782,191.26,191.21,5.22985199]
[1761313883227,16.10355521,191.32,191.16,5.23121992]
[1761313883449,5.20878782,191.25,191.19,5.20878782]
[1761313883657,5.20878782,191.26,191.2,5.20878782]
[1761313884348,5.20878782,191.26,191.19,5.20878782]
[1761313884660,5.20878782,191.26,191.2,5.20878782]
[1761313884860,5.20878782,191.28,191.22,5.20878782]
[1761313885464,5.20878782,191.29,191.23,23.5113554]
[1761313885672,103.3,191.39,191.28,5.20878782]
[1761313885830,3.58171405,191.38,191.29,5.20878782]
[1761313886027,5.20878782,191.36,191.3,5.20878782]
[1761313886263,5.20878782,191.37,191.31,5.20878782]
[1761313886641,0.2,191.38,191.32,5.20878782]
[1761313886880,0.2,191.38,191.33,7.91226713]
[1761313887035,1e-08,191.38,191.37,7.91226713]
[1761313887533,1e-08,191.38,191.37,13.13774656]
[1761313888150,1e-08,191.38,191.37,5.22547943]
[1761313888761,1e-08,191.38,191.37,13.13774656]
[1761313889269,1e-08,191.38,191.37,5.22547943]
[1761313889557,1e-08,191.38,191.32,38.6]
[1761313889558,1e-08,191.38,191.36,7.91226713]
[1761313889745,1e-08,191.38,191.37,7.91226713]
[1761313889942,7.91226714,191.38,191.32,20.97922771]
[1761313890141,7.91226714,191.38,191.32,13.06696058]
[1761313890344,7.91226714,191.38,191.32,20.97922771]
[1761313890668,1e-08,191.38,191.34,7.91226713]
[1761313891042,1e-08,191.38,191.33,7.91226713]
[1761313891345,7.91226714,191.38,191.32,20.97922771]
[1761313891545,7.91226714,191.38,191.32,18.29380565]
[1761313891953,7.91226714,191.38,191.32,26.20607278]
[1761313892366,1e-08,191.38,191.36,7.91226713]
[1761313892868,1e-08,191.38,191.37,7.91226713]
[1761313893553,1e-08,191.38,191.37,5.22547943]
[1761313893753,1e-08,191.38,191.37,13.13774656]
[1761313894249,1e-08,191.38,191.37,5.22547943]
[1761313895638,1e-08,191.38,191.37,13.13774656]
[1761313897964,1e-08,191.38,191.33,0.52265718]
[1761313898166,1e-08,191.38,191.34,13.06565023]
[1761313898365,1e-08,191.38,191.37,7.91226713]
[1761313898555,1e-08,191.38,191.37,39.04254794]
[1761313898756,1e-08,191.38,191.37,46.95481507]
[1761313899756,1e-08,191.38,191.37,52.1802945]
[1761313900753,1e-08,191.38,191.37,63.05676971]
[1761313901563,0.2,191.47,191.4,22.88]
[1761313901767,1e-08,191.47,191.46,7.91226713]
[1761313901940,1e-08,191.47,191.46,57.30874234]
[1761313902142,1e-08,191.47,191.46,57.83104464]
[1761313902653,0.2,191.58,191.49,22.88]
[1761313902851,0.2,191.58,191.5,0.52219321]
[1761313903036,7.91226713,191.53,191.47,7.91226713]
[1761313903242,19.67330532,191.58,191.46,7.91226713]
[1761313903555,7.91226713,191.53,191.46,7.91226713]
[1761313903947,7.91226713,191.53,191.45,18.28153563]
[1761313903948,7.91226713,191.5,191.45,18.28153563]
[1761313904267,7.91226713,191.51,191.44,7.91226713]
[1761313904482,7.91226713,191.52,191.45,7.91226713]
[1761313904650,7.91226713,191.53,191.47,7.91226713]
[1761313904855,22.88,191.56,191.48,7.91226713]
[1761313905050,7.91226713,191.52,191.43,39.04238416]
[1761313905249,7.91226713,191.51,191.45,7.91226713]
[1761313905969,5.22082903,191.55,191.46,5.22302308]
[1761313906167,7.91226713,191.51,191.46,5.22302308]
[1761313906858,7.91226713,191.52,191.46,26.19284792]
[1761313907173,7.91226713,191.5,191.46,18.28058079]
[1761313907380,7.91226713,191.51,191.46,18.28058079]
[1761313907675,103.3,191.57,191.46,18.28058079]
[1761313907676,7.91226713,191.5,191.46,18.28058079]
[1761313908056,7.91226713,191.5,191.46,5.22302308]
[1761313908448,7.91226713,191.5,191.46,18.28058079]
[1761313908653,131.40005448,191.57,191.46,26.19284792]
[1761313908888,7.91226713,191.53,191.48,5.22247754]
[1761313909248,7.91226713,191.51,191.48,5.22247754]
[1761313909476,7.91226713,191.52,191.48,5.22247754]
[1761313909773,8.60267602,191.56,191.48,26.19093852]
[1761313909774,7.91226713,191.54,191.48,26.19093852]
[1761313910073,11.29912778,191.56,191.5,7.91226713]
[1761313910250,3.38686065,191.57,191.5,7.91226713]
[1761313910450,7.91226713,191.55,191.49,7.91226713]
[1761313910666,7.91226713,191.53,191.48,5.22247754]
[1761313910867,7.91226713,191.52,191.47,5.2227503]
[1761313911247,7.91226713,191.53,191.47,26.19178107]
[1761313911465,7.91226713,191.55,191.49,7.91226713]
[1761313911648,3.38686065,191.57,191.49,7.91226713]
[1761313911842,7.91226713,191.57,191.51,7.91226713]
[1761313912048,7.91226713,191.57,191.47,44.91554047]
[1761313912049,8.11226713,191.58,191.53,7.91226713]
[1761313912271,7.91226713,191.57,191.47,44.91554047]
[1761313912484,7.91226713,191.56,191.51,7.91226713]
[1761313912783,0.2,191.58,191.51,7.91226713]
[1761313912784,7.91226713,191.57,191.51,7.91226713]
[1761313912954,23.08,191.58,191.52,5.2213868]
[1761313913158,7.91226713,191.56,191.52,5.2213868]
[1761313913356,7.91226713,191.55,191.52,5.2213868]
[1761313913552,0.2,191.58,191.52,5.2213868]
[1761313913764,7.91226713,191.56,191.52,5.2213868]
[1761313914292,0.2,191.58,191.52,5.2213868]
[1761313914501,5.41976029,191.58,191.49,5.22220481]
[1761313914792,7.91226713,191.52,191.49,5.22220481]
[1761313915165,7.91226713,191.51,191.48,13.05587456]
[1761313915692,7.91226713,191.49,191.47,5.2227503]
[1761313915887,3.39300703,191.54,191.47,5.2227503]
[1761313916086,7.91226713,191.49,191.47,5.2227503]
[1761313916680,7.91226713,191.49,191.45,13.05773784]
[1761313917572,7.91226713,191.48,191.44,5.22356874]
[1761313917889,7.91226713,191.48,191.44,18.28249059]
[1761313918276,8.61395795,191.54,191.44,18.28249059]
[1761313918277,10.87647521,191.53,191.44,18.28249059]
[1761313918503,7.91226713,191.48,191.44,18.28249059]
[1761313918669,7.91226713,191.48,191.44,13.05892185]
[1761313919072,8.61442083,191.52,191.44,13.05892185]
[1761313919269,7.91226713,191.48,191.43,5.22384161]
[1761313919884,10.87647521,191.53,191.43,26.19571277]
[1761313919885,7.91226713,191.49,191.43,26.19571277]
[1761313920089,7.91226713,191.5,191.43,18.28344564]
[1761313920294,7.91226713,191.49,191.43,26.19571277]
[1761313920480,7.91226713,191.52,191.46,7.91226713]
[1761313920673,7.91226713,191.52,191.47,5.2227503]
[1761313920879,7.91226713,191.53,191.47,13.13501743]
[1761313921073,7.91226713,191.53,191.47,26.19189318]
[1761313921269,7.91226713,191.52,191.47,18.27962605]
[1761313921482,7.91226713,191.5,191.47,5.2227503]
[1761313921673,7.91226713,191.49,191.47,5.2227503]
[1761313921898,5.2227503,191.46,191.13,2.72530412]
[1761313922105,15.67,191.47,191.14,0.52317672]
[1761313922106,1.99999999,191.32,191.14,0.52317672]
[1761313922400,16.20166073,191.34,191.08,31.32]
[1761313922401,22.88,191.2,191.08,31.32]
[1761313922571,7.91226713,191.18,191.08,31.32]
[1761313922769,22.88,191.15,191.03,0.1]
[1761313922970,0.52249333,191.14,191.04,38.9]
[1761313923175,23.40249333,191.14,191.03,0.1]
[1761313923388,7.91226713,191.06,191.03,0.1]
[1761313923701,7.91226713,191.05,191.04,35.6]
[1761313924007,7.91226713,191.05,191.04,38.9]
[1761313924203,7.91226713,191.05,191.03,0.1]
[1761313924376,7.91226713,191.05,191.04,38.9]
[1761313925082,0.52249333,191.13,191.04,38.9]
[1761313925282,7.91226713,191.06,191.04,38.9]
[1761313925598,7.91226713,191.07,191.05,38.9]
[1761313925802,7.91226713,191.06,191.05,38.9]
[1761313927301,7.91226713,191.06,191.05,38.86]
[1761313927472,7.91226713,191.06,191.05,38.88]
[1761313927672,7.91226713,191.06,191.03,0.1]
[1761313927899,7.91226713,191.04,191.03,0.1]
[1761313928200,7.91226713,191.04,191.03,38.96]
[1761313929109,7.91226713,191.04,191.03,0.1]
[1761313929311,30.79226713,191.04,191.03,0.1]
[1761313929514,30.79226713,191.04,190.86,26.19654722]
[1761313929515,7.91226713,190.93,190.86,5.23944252]
[1761313929677,7.91226713,190.93,190.87,38.88]
[1761313929678,7.91226713,190.88,190.87,38.88]
[1761313929876,22.88,190.95,190.87,38.88]
[1761313930089,7.91226713,190.92,190.88,38.9]
[1761313930409,7.91226713,190.9,190.89,38.9]
[1761313930577,7.91226713,190.9,190.85,5.23967554]
[1761313930776,0.52249333,190.95,190.86,57.23797545]
[1761313930972,7.91226713,190.98,190.89,10.87647521]
[1761313931304,7.91226713,191.02,190.93,7.91226713]
[1761313931474,7.91226713,191.02,190.94,0.52372473]
[1761313931670,7.91226713,191.02,190.95,38.92]
[1761313931877,7.91226713,191.02,190.95,39.4436973]
[1761313932186,0.52249333,191.09,190.96,38.92]
[1761313932531,7.91226713,191.03,190.96,38.92]
[1761313932683,0.52249333,191.09,190.96,38.92]
[1761313932894,7.91226713,191.03,190.97,18.32748598]
[1761313933588,7.91226713,191.03,190.98,38.9]
[1761313933905,7.91226713,191.05,190.99,7.91226713]
[1761313934283,7.91226713,191.06,190.97,18.85112843]
[1761313934601,7.91226713,191.06,191.0,7.91226713]
[1761313934802,7.91226713,191.01,190.97,5.23642456]
[1761313935098,1.99999999,191.18,190.97,5.23642456]
[1761313935099,7.91226713,191.04,190.98,46.79226713]
[1761313935305,7.91226713,191.07,191.01,7.91226713]
[1761313935486,0.52249333,191.15,191.02,7.91226713]
[1761313935675,0.52249333,191.15,191.04,7.91226713]
[1761313935988,0.52249333,191.15,191.03,38.98]
[1761313935989,10.87647521,191.18,191.03,38.98]
[1761313936189,7.91226713,191.1,191.04,7.91226713]
[1761313936394,7.91226713,191.1,191.05,38.98]
[1761313936578,0.52249333,191.17,191.06,38.96]
[1761313936775,7.91226713,191.1,191.05,5.23423187]
[1761313936978,7.91226713,191.1,191.06,38.96]
[1761313937179,5.75345405,191.17,191.06,38.96]
[1761313937392,7.91226713,191.1,191.05,18.31981156]
[1761313937674,7.91226713,191.09,191.05,18.31981156]
[1761313937879,7.91226713,191.09,191.06,38.94]
[1761313938101,7.91226713,191.09,191.07,38.94]
[1761313938279,7.91226713,191.08,191.05,5.23423187]
[1761313938480,0.52249333,191.13,191.05,5.23423187]
[1761313938481,7.91226713,191.06,191.05,5.23423187]
[1761313938822,0.5,191.12,191.05,44.15423187]
[1761313939106,0.52249333,191.13,191.05,5.23423187]
[1761313939107,7.91226713,191.1,191.05,5.23423187]
[1761313939278,0.52249333,191.13,191.06,38.92]
[1761313939476,7.91226713,191.09,191.06,38.92]
[1761313939709,7.91226713,191.1,191.06,38.92]
[1761313940205,7.91226713,191.08,191.05,18.31981156]
[1761313940510,7.91226713,191.08,191.07,44.15368399]
[1761313940717,0.52249333,191.13,191.07,57.23789396]
[1761313940913,6.85852415,191.2,191.07,18.31789396]
[1761313940914,0.52249333,191.18,191.07,18.31789396]
[1761313941120,0.52249333,191.18,191.07,5.23368399]
[1761313941408,0.52249333,191.29,191.16,7.91226713]
[1761313941607,0.52249333,191.29,191.21,7.91226713]
[1761313941608,7.91226713,191.29,191.21,7.91226713]
[1761313941783,7.91226713,191.29,191.22,0.52295784]
[1761313941984,7.91226713,191.3,191.22,0.52295784]
[1761313942298,0.52249333,191.35,191.23,46.89226713]
[1761313942516,7.91226713,191.34,191.25,7.91226713]